bitfinex-derivatives/quotes_SOLF0:USTF0_20250318
["timestamp","ask_amount","ask_price","bid_price","bid_amount"]
[1742266662638,28.94,125.26,125.19,2.0501]
[1742266663044,28.94,125.26,125.23,7.9854]
[1742266663448,28.94,125.26,125.22,7.9862]
[1742266663648,28.99681387,125.26,125.23,0.06063645]
[1742266664853,7.985,125.25,125.23,0.06063645]
[1742266665652,36.98111387,125.26,125.23,0.06063645]
[1742266665840,28.99681387,125.26,125.23,0.06063645]
[1742266666346,28.94,125.25,125.23,0.06063645]
[1742266667651,0.05681387,125.26,125.23,8.04643645]
[1742266667846,0.05681387,125.26,125.23,0.06063645]
[1742266668249,0.05681387,125.26,125.24,7.9849]
[1742266668547,275.64,125.29,125.23,0.06063645]
[1742266668741,28.94,125.29,125.26,7.984]
[1742266668946,7.9817,125.3,125.26,7.984]
[1742266669153,28.94,125.29,125.26,7.984]
[1742266669654,28.99726909,125.29,125.26,8.0393881]
[1742266670449,0.05726909,125.29,125.26,8.0393881]
[1742266670654,28.99726909,125.29,125.26,0.0553881]
[1742266671044,7.9833,125.27,125.26,0.0553881]
[1742266674059,7.9833,125.27,125.26,8.81e-05]
[1742266676959,283.4833,125.27,125.26,8.81e-05]
[1742266681859,275.5,125.27,125.26,8.81e-05]
[1742266682061,304.44,125.27,125.26,8.81e-05]
[1742266683156,312.4233,125.27,125.26,8.81e-05]
[1742266684164,28.94,125.27,125.26,8.81e-05]
[1742266684568,28.94,125.27,125.26,7.9840881]
[1742266684866,36.9233,125.27,125.26,8.81e-05]
[1742266691576,44.9033,125.27,125.26,8.81e-05]
[1742266691770,68.8133,125.27,125.26,8.81e-05]
[1742266695069,70.2036316,125.27,125.26,8.81e-05]
[1742266695572,136.51034495,125.27,125.26,8.81e-05]
[1742266696874,7.9889,125.19,125.16,12.1689]
[1742266697076,28.94,125.18,125.16,4.1787]
[1742266698174,28.99087499,125.18,125.16,4.23553962]
[1742266699479,36.98027499,125.18,125.16,4.23553962]
[1742266704672,36.98027499,125.18,125.16,12.22583962]
[1742266704868,28.99087499,125.18,125.16,12.22583962]
[1742266705284,28.99087499,125.18,125.16,4.23553962]
[1742266705774,28.99087499,125.18,125.16,12.22563962]
[1742266706777,0.05087499,125.18,125.17,7.9897]
[1742266707081,28.94,125.19,125.17,7.9897]
[1742266708076,28.99597742,125.19,125.17,7.9897]
[1742266708883,36.98447742,125.19,125.16,12.22553962]
[1742266709082,28.99597742,125.19,125.16,12.22553962]
[1742266709471,36.98477742,125.19,125.16,12.22553962]
[1742266710676,28.99597742,125.19,125.16,4.23553962]
[1742266710876,28.99597742,125.19,125.16,2.10873962]
[1742266711082,28.99597742,125.19,125.16,0.05683962]
[1742266711379,7.9897,125.17,125.16,0.05683962]
[1742266711883,7.9897,125.17,125.16,3.962e-05]
[1742266726690,7.9895,125.18,125.16,3.962e-05]
[1742266727092,28.99597742,125.19,125.16,3.962e-05]
[1742266727893,7.9894,125.18,125.16,3.962e-05]
[1742266728086,0.05597742,125.19,125.16,3.962e-05]
[1742266728293,28.99597742,125.19,125.16,3.962e-05]
[1742266728691,28.99597742,125.19,125.17,7.9894]
[1742266728891,28.99597742,125.19,125.16,3.962e-05]
[1742266730093,36.98437742,125.19,125.17,7.9897]
[1742266730598,28.99597742,125.19,125.17,7.9897]
[1742266731593,0.05597742,125.19,125.17,7.9897]
[1742266731798,28.94,125.23,125.18,6.3336]
[1742266732393,36.9264,125.23,125.2,7.9877]
[1742266732592,28.94,125.22,125.2,7.9877]
[1742266732797,28.94,125.22,125.18,6.3336]
[1742266732997,29.0006622,125.22,125.2,0.05198017]
[1742266733498,29.0006622,125.22,125.2,8.03968017]
[1742266734196,0.0606622,125.22,125.2,0.05198017]
[1742266734386,29.0006622,125.22,125.2,0.05198017]
[1742266735194,7.9872,125.21,125.2,0.05198017]
[1742266735596,29.0006622,125.22,125.2,0.05198017]
[1742266736899,29.0006622,125.22,125.2,8.03978017]
[1742266737899,29.0006622,125.22,125.21,7.9872]
[1742266738805,29.0006622,125.22,125.2,8.03948017]
[1742266739101,29.0006622,125.22,125.2,0.05198017]
[1742266739500,29.0006622,125.22,125.21,7.9872]
[1742266739906,29.0006622,125.22,125.2,8.03948017]
[1742266740705,29.0006622,125.22,125.2,0.05198017]
[1742266741207,7.9872,125.21,125.2,0.05198017]
[1742266742608,29.0006622,125.22,125.2,0.05198017]
[1742266743016,29.0006622,125.22,125.2,8.03938017]
[1742266744114,29.0006622,125.22,125.21,7.9872]
[1742266745313,29.0006622,125.22,125.2,8.03938017]
[1742266745618,29.0006622,125.22,125.2,0.05198017]
[1742266745916,0.0606622,125.22,125.2,0.05198017]
[1742266746118,8.0474622,125.22,125.2,0.05198017]
[1742266746417,28.94,125.21,125.2,0.05198017]
[1742266746716,36.9272,125.21,125.2,0.05198017]
[1742266747717,28.94,125.21,125.2,0.05198017]
[1742266748911,28.94,125.21,125.2,8.03978017]
[1742266749119,8.0475622,125.22,125.2,8.03978017]
[1742266749315,36.9675622,125.22,125.2,8.03978017]
[1742266751319,28.9806622,125.22,125.2,8.03978017]
[1742266751517,28.9806622,125.22,125.21,7.9872]
[1742266752221,0.0606622,125.22,125.21,7.9872]
[1742266753622,0.0606622,125.22,125.2,0.05198017]
[1742266754122,8.0475622,125.22,125.2,0.05198017]
[1742266755727,7.9872,125.21,125.2,0.05198017]
[1742266756829,8.0474622,125.22,125.2,0.05198017]
[1742266757922,7.9872,125.21,125.2,0.05198017]
[1742266760831,0.0606622,125.22,125.2,0.05198017]
[1742266761930,0.0606622,125.22,125.2,8.03928017]
[1742266763535,0.0606622,125.22,125.21,7.9872]
[1742266765134,36.905,125.25,125.2,0.05198017]
[1742266765330,7.985,125.25,125.2,0.05198017]
[1742266765532,36.905,125.25,125.22,7.9859]
[1742266765927,70.37020678,125.29,125.22,28.92]
[1742266766234,0.05634974,125.25,125.22,28.92]
[1742266766433,0.05634974,125.25,125.24,0.0612152]
[1742266766632,0.05634974,125.25,125.24,8.0459152]
[1742266769529,0.05634974,125.25,125.24,0.0612152]
[1742266769736,28.97634974,125.25,125.24,0.0612152]
[1742266770230,36.96094974,125.25,125.24,0.0612152]
[1742266770435,28.97634974,125.25,125.18,4.2063]
[1742266770636,7.9866,125.22,125.19,7.988]
[1742266770835,36.9066,125.22,125.19,7.988]
[1742266771341,28.92,125.22,125.2,7.9878]
[1742266771540,28.97775046,125.22,125.19,0.05278555]
[1742266772037,28.97775046,125.22,125.2,7.9874]
[1742266773135,28.97775046,125.22,125.19,0.05278555]
[1742266773136,28.97775046,125.22,125.21,7.9872]
[1742266773336,36.96435046,125.22,125.19,0.05278555]
[1742266773741,28.97775046,125.22,125.19,8.04088555]
[1742266774142,28.97775046,125.22,125.19,8.04118555]
[1742266774840,28.97775046,125.22,125.2,7.9875]
[1742266775836,28.97775046,125.22,125.21,7.9872]
[1742266776242,0.05775046,125.22,125.21,7.9872]
[1742266781638,0.05775046,125.22,125.2,38.9614]
[1742266781839,0.05775046,125.22,125.2,10.0414]
[1742266782642,8.04425046,125.22,125.19,8.04088555]
[1742266783138,28.97775046,125.22,125.2,7.9878]
[1742266783738,28.97775046,125.22,125.21,7.9872]
[1742266785846,28.97775046,125.22,125.2,7.9874]
[1742266787448,36.96445046,125.22,125.2,7.9874]
[1742266787650,36.96445046,125.22,125.19,8.04098555]
[1742266789953,28.97775046,125.22,125.2,7.9878]
[1742266790155,28.97775046,125.22,125.19,0.05278555]
[1742266791146,7.9874,125.21,125.19,8.04118555]
[1742266791348,28.97775046,125.22,125.19,8.04118555]
[1742266791749,36.96485046,125.22,125.19,8.04118555]
[1742266792351,7.9872,125.21,125.19,8.04118555]
[1742266792650,28.97775046,125.22,125.19,8.04118555]
[1742266792852,28.97775046,125.22,125.2,7.9877]
[1742266794958,36.96435046,125.22,125.2,7.9877]
[1742266795350,28.97775046,125.22,125.2,7.9877]
[1742266795860,36.96435046,125.22,125.2,7.9877]
[1742266796049,36.96435046,125.22,125.19,8.04088555]
[1742266796850,28.97775046,125.22,125.2,7.9878]
[1742266797155,28.97775046,125.22,125.19,0.05278555]
[1742266797653,36.96475046,125.22,125.19,8.04098555]
[1742266797853,28.97775046,125.22,125.19,8.04098555]
[1742266798156,7.9874,125.21,125.19,0.05278555]
[1742266798651,36.96455046,125.22,125.19,8.04088555]
[1742266801057,28.97775046,125.22,125.2,7.9876]
[1742266801258,28.97775046,125.22,125.19,0.05278555]
[1742266801650,7.9901,125.17,125.14,10.012]
[1742266801855,36.9101,125.17,125.14,10.012]
[1742266802350,28.92,125.17,125.14,2.0206]
[1742266802750,28.97050167,125.17,125.14,2.0756483]
[1742266802955,0.05050167,125.17,125.16,7.9904]
[1742266803354,28.92,125.2,125.19,7.9881]
[1742266803557,28.92,125.22,125.19,7.9881]
[1742266803757,28.92,125.22,125.16,2.04]
[1742266804058,7.9873,125.21,125.18,7.9886]
[1742266804253,28.92,125.22,125.16,2.04]
[1742266804459,0.05518761,125.21,125.18,0.05486975]
[1742266805058,7.9884,125.19,125.18,0.05486975]
[1742266805252,36.9084,125.19,125.18,0.05486975]
[1742266807253,36.9,125.19,125.07,221.34816511]
[1742266807559,3.6895,125.18,125.11,7.9933]
[1742266808060,3.6895,125.18,125.12,7.9929]
[1742266808256,0.05686219,125.16,125.14,0.05046454]
[1742266808452,28.92,125.15,125.14,0.05046454]
[1742266812261,36.911,125.15,125.14,0.05046454]
[1742266820463,28.92,125.15,125.14,0.05046454]
[1742266821669,36.911,125.15,125.14,0.05046454]
[1742266823570,28.92,125.15,125.14,0.05046454]
[1742266824376,36.911,125.15,125.14,0.05046454]
[1742266826278,28.92,125.15,125.14,0.05046454]
[1742266827280,36.911,125.15,125.14,0.05046454]
[1742266828572,28.92,125.15,125.08,2.0022]
[1742266828776,28.92,125.15,125.08,9.9975]
[1742266828973,275.7,125.14,125.08,9.9975]
[1742266829485,275.7,125.14,125.09,7.9948]
[1742266829784,0.05519679,125.13,125.1,0.05694663]
[1742266829984,28.92,125.12,125.1,0.05694663]
[1742266831675,0.05519679,125.13,125.1,0.05694663]
[1742266831875,28.97519679,125.13,125.1,0.05694663]
[1742266832989,0.05519679,125.13,125.1,0.05694663]
[1742266833787,0.05519679,125.13,125.12,7.9929]
[1742266834485,0.05519679,125.13,125.1,0.05694663]
[1742266836086,0.05519679,125.13,125.12,7.9929]
[1742266837788,0.05519679,125.13,125.11,7.9934]
[1742266838383,0.05519679,125.13,125.1,0.05694663]
[1742266839188,0.05519679,125.13,125.12,7.9929]
[1742266844792,0.05519679,125.13,125.1,0.05694663]
[1742266845788,7.9932,125.12,125.1,0.05694663]
[1742266845992,28.92,125.11,125.1,0.05694663]
[1742266846790,36.9136,125.11,125.1,0.05694663]
[1742266854193,28.92,125.11,125.1,0.05694663]
[1742266855299,36.9136,125.11,125.1,0.05694663]
[1742266862899,36.9136,125.11,125.1,4.663e-05]
[1742266863898,44.9136,125.11,125.1,4.663e-05]
[1742266864104,46.5227,125.11,125.1,4.663e-05]
[1742266867301,47.91467216,125.11,125.1,4.663e-05]
[1742266867502,434.91467216,125.11,125.1,4.663e-05]
[1742266867705,451.53111797,125.11,125.1,4.663e-05]
[1742266868298,466.97827349,125.11,125.1,4.663e-05]
[1742266868793,7.9992,125.03,124.91,291.8719]
[1742266868993,102.58630133,125.11,124.94,6.2763]
[1742266868994,28.92,125.02,124.94,6.2763]
[1742266869197,275.86,125.03,124.94,6.2763]
[1742266869398,28.92,125.02,124.99,8.0009]
[1742266869897,28.97192366,125.02,124.99,0.05232871]
[1742266871004,36.97162366,125.02,124.99,0.05232871]
[1742266871599,28.97192366,125.02,124.99,0.05232871]
[1742266872406,28.97192366,125.02,125.0,8.0003]
[1742266872806,36.97142366,125.02,124.99,0.05232871]
[1742266873108,36.97142366,125.02,124.99,8.05322871]
[1742266873300,8.0,125.01,124.99,8.05322871]
[1742266873500,28.97192366,125.02,124.99,0.05232871]
[1742266873906,8.0006,125.0,124.99,0.05232871]
[1742266874105,36.9206,125.0,124.99,0.05232871]
[1742266877712,36.9206,125.0,124.99,2.871e-05]
[1742266878103,44.9206,125.0,124.99,2.871e-05]
[1742266878508,36.9206,125.0,124.99,2.871e-05]
[1742266878915,44.9206,125.0,124.99,2.871e-05]
[1742266880613,68.9206,125.0,124.99,2.871e-05]
[1742266884410,8.005,124.94,124.89,8.0074]
[1742266884716,28.94,124.93,124.88,4.1259]
[1742266884914,28.94,124.93,124.89,8.007]
[1742266885115,28.94,124.93,124.88,4.1259]
[1742266885512,28.94,124.93,124.91,8.0063]
[1742266885717,0.05510311,124.92,124.91,8.0063]
[1742266886015,0.05510311,124.92,124.78,16.029]
[1742266886212,0.05510311,124.92,124.69,954.92395512]
[1742266886213,34.8184,124.93,124.8,4.2561]
[1742266886605,34.8184,124.93,124.83,8.0115]
[1742266886809,34.8184,124.93,124.84,2.0843]
[1742266887007,8.007,124.9,124.84,2.0843]
[1742266887212,28.94,124.89,124.85,4.2561]
[1742266889517,36.9477,124.89,124.85,4.2561]
[1742266890218,28.94,124.89,124.85,4.2561]
[1742266890918,36.9477,124.89,124.85,4.2561]
[1742266891114,0.05425767,124.9,124.85,4.2561]
[1742266891419,4.3196,124.96,124.85,4.2561]
[1742266891420,276.2,124.94,124.86,0.05425767]
[1742266891618,28.94,124.93,124.85,33.1961]
[1742266892016,36.9455,124.93,124.88,8.0078]
[1742266892214,28.94,124.93,124.89,2.1535]
[1742266892414,0.05042017,124.92,124.89,2.20775767]
[1742266892608,8.05642017,124.92,124.89,2.20775767]
[1742266892821,4.72402017,124.92,124.89,10.21535767]
[1742266893008,28.94,124.93,124.9,2.0756]
[1742266893319,36.9454,124.93,124.9,2.0756]
[1742266893718,28.94,124.93,124.9,2.0756]
[1742266894016,28.99283956,124.93,124.9,2.0756]
[1742266894417,8.0061,124.92,124.9,2.0756]
[1742266894612,28.99283956,124.93,124.9,2.0756]
[1742266895012,8.006,124.92,124.9,2.0756]
[1742266895314,28.99283956,124.93,124.9,2.0756]
[1742266896116,36.99823956,124.93,124.9,2.0756]
[1742266896315,36.99823956,124.93,124.9,10.0825]
[1742266896921,8.0057,124.92,124.9,10.0825]
[1742266897322,28.99283956,124.93,124.9,10.0825]
[1742266897527,36.99823956,124.93,124.9,10.0825]
[1742266899522,36.99823956,124.93,124.91,8.0063]
[1742266900217,28.99283956,124.93,124.91,8.0063]
[1742266901820,36.99793956,124.93,124.9,10.0824]
[1742266902020,28.99283956,124.93,124.9,2.0756]
[1742266902326,36.99823956,124.93,124.9,10.0826]
[1742266903621,8.006,124.92,124.9,2.0756]
[1742266903825,28.94,124.91,124.9,2.0756]
[1742266904025,28.94,124.91,124.89,10.21515767]
[1742266904026,36.9469,124.91,124.89,0.05425767]
[1742266904425,28.94,124.91,124.89,0.05425767]
[1742266904626,36.9469,124.91,124.89,0.05425767]
[1742266905224,8.007,124.9,124.89,0.05425767]
[1742266912634,8.007,124.9,124.89,5.767e-05]
[1742266914633,16.007,124.9,124.89,5.767e-05]
[1742266915032,17.40128663,124.9,124.89,5.767e-05]
[1742266917526,9.40128663,124.9,124.89,5.767e-05]
[1742266919829,8.007,124.9,124.89,5.767e-05]
[1742266920235,9.40123077,124.9,124.89,5.767e-05]
[1742266920836,41.40123077,124.9,124.89,5.767e-05]
[1742266921442,404.40123077,124.9,124.89,5.767e-05]
[1742266921939,41.40123077,124.9,124.79,4.178]
[1742266922141,391.96,124.89,124.79,4.178]
[1742266922436,276.34,124.88,124.79,4.178]
[1742266922942,8.06258107,124.85,124.82,0.05042017]
[1742266923237,0.05208107,124.85,124.82,0.05042017]
[1742266923540,29.01208107,124.85,124.82,0.05042017]
[1742266923932,29.01208107,124.85,124.83,8.0115]
[1742266924132,29.01208107,124.85,124.82,0.05042017]
[1742266924533,276.34,124.88,124.82,0.05042017]
[1742266924729,28.96,124.88,124.82,0.05042017]
[1742266924942,28.96,124.88,124.83,28.96]
[1742266925138,28.96,124.88,124.84,4.2112]
[1742266925749,0.05976205,124.87,124.85,0.05551371]
[1742266926043,36.9696,124.86,124.85,0.05551371]
[1742266926938,28.96,124.86,124.85,0.05551371]
[1742266927345,36.9696,124.86,124.85,0.05551371]
[1742266930252,313.3296,124.86,124.85,0.05551371]
[1742266935749,305.32,124.86,124.85,0.05551371]
[1742266935949,276.36,124.86,124.85,0.05551371]
[1742266936248,305.32,124.86,124.85,0.05551371]
[1742266937349,313.3296,124.86,124.85,0.05551371]
[1742266938052,305.32,124.86,124.85,0.05551371]
[1742266938550,313.3296,124.86,124.85,0.05551371]
[1742266938850,305.32,124.86,124.85,0.05551371]
[1742266941553,276.36,124.86,124.85,8.06571371]
[1742266941852,305.32,124.86,124.85,8.06571371]
[1742266942153,276.36,124.86,124.85,8.06571371]
[1742266942348,305.32,124.86,124.85,8.06571371]
[1742266942748,28.96,124.86,124.85,8.06571371]
[1742266944147,0.05976205,124.87,124.86,8.0096]
[1742266944350,29.01976205,124.87,124.86,8.0096]
[1742266945253,0.05976205,124.87,124.86,8.0096]
[1742266947758,0.05976205,124.87,124.85,0.05551371]
[1742266947955,28.96,124.86,124.85,0.05551371]
[1742266949457,36.9696,124.86,124.85,0.05551371]
[1742266955962,28.96,124.86,124.85,0.05551371]
[1742266957460,0.05976205,124.87,124.85,0.05551371]
[1742266957665,28.96,124.86,124.85,0.05551371]
[1742266958071,0.05976205,124.87,124.85,0.05551371]
[1742266958273,28.96,124.86,124.85,0.05551371]
[1742266958674,0.05976205,124.87,124.86,8.0096]
[1742266958872,0.05976205,124.87,124.86,10.1956]
[1742266959269,28.96,124.88,124.86,10.1956]
[1742266960171,28.96,124.88,124.87,8.0089]
[1742266960474,29.01321826,124.88,124.86,2.186]
[1742266960671,0.05321826,124.88,124.87,8.0089]
[1742266960874,29.01321826,124.88,124.87,8.0089]
[1742266961074,29.01321826,124.88,124.86,2.186]
[1742266961581,37.02181826,124.88,124.86,2.186]
[1742266962178,29.01321826,124.88,124.85,0.05551371]
[1742266962578,8.0094,124.87,124.85,0.05551371]
[1742266962871,28.96,124.86,124.85,0.05551371]
[1742266963077,28.96,124.86,124.85,8.06571371]
[1742266963672,37.02191826,124.88,124.86,8.0095]
[1742266964877,8.0091,124.87,124.85,0.05551371]
[1742266966179,37.02181826,124.88,124.85,0.05551371]
[1742266966481,29.01321826,124.88,124.85,0.05551371]
[1742266967483,8.0093,124.87,124.85,0.05551371]
[1742266967676,29.01321826,124.88,124.85,0.05551371]
[1742266967880,8.0096,124.86,124.85,0.05551371]
[1742266969786,36.9696,124.86,124.85,0.05551371]
[1742266971678,28.96,124.86,124.85,0.05551371]
[1742266972597,28.96,124.86,124.85,8.06571371]
[1742266974087,28.96,124.86,124.85,0.05551371]
[1742266975192,36.9696,124.86,124.85,0.05551371]
[1742266977291,313.3096,124.86,124.85,0.05551371]
[1742266977687,313.3096,124.86,124.85,1.371e-05]
[1742266979083,345.3096,124.86,124.85,1.371e-05]
[1742266979293,361.82700535,124.86,124.85,1.371e-05]
[1742266979483,373.78551683,124.86,124.85,1.371e-05]
[1742266979682,345.3096,124.86,124.85,1.371e-05]
[1742266979882,461.3,124.86,124.72,93.95187224]
[1742266980089,1.6019223,124.85,124.72,93.95187224]
[1742266980389,24.0,124.83,124.72,93.95187224]
[1742266980592,59.3735,124.82,124.72,89.55797224]
[1742266980791,28.96,124.81,124.72,89.55797224]
[1742266981094,8.0163,124.76,124.75,0.05047762]
[1742266981297,28.96,124.76,124.75,0.05047762]
[1742266982289,36.976,124.76,124.75,0.05047762]
[1742266984406,28.96,124.76,124.75,0.05047762]
[1742266984597,28.96,124.76,124.75,7.762e-05]
[1742266984896,44.996,124.76,124.75,7.762e-05]
[1742266985295,8.0205,124.69,124.64,10.241]
[1742266985496,8.0205,124.69,124.6,110.55098285]
[1742266985497,48.0,124.67,124.59,60.57657224]
[1742266985705,24.0,124.65,124.56,276.68520638]
[1742266985993,48.0,124.63,124.5,351.10469519]
[1742266986199,197.2741952,124.61,124.5,311.34019519]
[1742266986500,24.0,124.47,124.42,122.1046037]
[1742266986701,24.0,124.45,124.42,122.1046037]
[1742266986898,32.0372,124.43,124.42,122.1046037]
[1742266987097,32.0372,124.43,124.42,4.88e-06]
[1742266987297,24.0,124.41,124.22,307.68]
[1742266987504,394.06,124.4,124.22,307.68]
[1742266987697,394.18,124.39,124.22,276.66]
[1742266987903,394.18,124.39,124.16,1.39969834]
[1742266988099,401.90555639,124.38,124.17,284.65]
[1742266988304,394.4,124.37,124.17,276.66]
[1742266988498,0.05470326,124.29,124.18,31.42]
[1742266988691,368.7329063,124.28,124.12,1.40088159]
[1742266988899,368.7329063,124.28,124.0,360.1]
[1742266988900,0.06128748,124.24,124.0,0.1]
[1742266989107,363.0,124.23,124.0,0.1]
[1742266989297,0.05705356,124.13,124.01,32.28]
[1742266989693,32.4,124.24,124.01,40.34]
[1742266989991,3.543e-05,124.21,124.02,35.45459699]
[1742266990193,3.543e-05,124.21,124.09,24.0]
[1742266990401,737.98478568,124.31,124.11,24.0]
[1742266990596,737.98478568,124.31,124.11,384.0]
[1742266990796,692.77257873,124.21,124.12,1.47744643]
[1742266990996,370.64957873,124.21,124.2,0.05406853]
[1742266991202,51.75843201,124.23,124.2,309.8]
[1742266991402,51.75843201,124.23,124.22,8.0508]
[1742266991908,3.201e-05,124.23,124.22,40.8308]
[1742266992300,8.14e-06,124.24,124.23,8.0502]
[1742266992605,24.0,124.41,124.22,32.78]
[1742266992606,32.76,124.35,124.22,32.78]
[1742266992793,144.96006594,124.34,124.22,32.78]
[1742266992995,32.76,124.36,124.3,8.0455]
[1742266992996,144.96006594,124.35,124.3,8.0455]
[1742266993199,144.96006594,124.35,124.31,277.18]
[1742266993405,145.01186657,124.34,124.31,277.23177243]
[1742266993599,0.05180063,124.34,124.31,277.23177243]
[1742266993898,0.05180063,124.34,124.32,32.78]
[1742266994296,0.05180063,124.34,124.31,277.23177243]
[1742266994905,189.84438198,124.33,124.21,110.87998898]
[1742266995104,189.84438198,124.33,124.22,310.02]
[1742266995301,324.99728828,124.33,124.28,8.0469]
[1742266995502,324.99728828,124.33,124.29,277.18]
[1742266995804,292.17728828,124.33,124.29,277.18]
[1742266996001,44.88431604,124.33,124.31,8.045]
[1742266996205,0.05858143,124.32,124.3,0.05299301]
[1742266996707,0.05858143,124.32,124.29,253.92416338]
[1742266997305,0.05858143,124.32,124.29,221.12416338]
[1742266997703,0.05858143,124.32,124.3,8.0451]
[1742266997898,106.48363977,124.31,124.3,8.0451]
[1742266998303,0.05858143,124.32,124.29,117.00970458]
[1742266999608,0.05858143,124.32,124.3,8.0451]
[1742267000308,144.96006594,124.31,124.29,117.00970458]
[1742267000508,24.15,124.3,124.29,117.00970458]
[1742267000809,32.79858143,124.32,124.29,117.00970458]
[1742267001010,280.09155367,124.32,124.29,117.00970458]
[1742267001204,24.15,124.31,124.29,117.00970458]
[1742267001508,24.15,124.3,124.29,117.00970458]
[1742267001710,32.79858143,124.32,124.29,117.00970458]
[1742267001909,144.96006594,124.31,124.29,117.00970458]
[1742267002111,24.15,124.31,124.29,117.00970458]
[1742267002313,32.79858143,124.32,124.3,8.0452]
[1742267002613,24.15,124.31,124.3,8.0452]
[1742267003205,32.79858143,124.32,124.29,117.00970458]
[1742267003404,0.05858143,124.32,124.3,32.66]
[1742267003605,0.05858143,124.32,124.31,8.045]
[1742267004310,0.05858143,124.32,124.29,117.00970458]
[1742267004606,120.86864737,124.32,124.29,117.00970458]
[1742267004809,144.96006594,124.3,124.25,13.64]
[1742267005112,144.96006594,124.26,124.25,13.64]
[1742267005307,177.78006594,124.26,124.25,13.64]
[1742267005610,177.78006594,124.26,124.24,41.47]
[1742267005611,280.11297224,124.26,124.21,277.42]
[1742267005907,144.96006594,124.23,124.21,277.42]
[1742267006101,153.69006594,124.23,124.21,277.42]
[1742267006304,144.96006594,124.22,124.21,177.088]
[1742267006501,0.05569758,124.25,124.21,177.088]
[1742267006914,0.05569758,124.25,124.21,210.068]
[1742267007110,0.05569758,124.25,124.24,8.0495]
[1742267007313,0.00909758,124.25,124.24,41.0495]
[1742267009715,4.3778,124.36,124.24,41.04]
[1742267009910,4.3778,124.36,124.24,33.0]
[1742267009911,24.15,124.35,124.24,33.0]
[1742267010304,33.0,124.39,124.24,33.0]
[1742267010505,24.15,124.38,124.24,33.0]
[1742267010809,24.15,124.39,124.38,8.0403]
[1742267011009,32.98,124.39,124.38,277.48]
[1742267011215,280.27297224,124.39,124.38,277.48]
[1742267011912,24.15,124.39,124.38,285.5205]
[1742267012409,0.0589055,124.4,124.39,8.0398]
[1742267012810,24.2089055,124.4,124.39,8.0398]
[1742267016123,0.0589055,124.4,124.39,8.0398]
[1742267016324,32.88,124.46,124.38,310.32]
[1742267016517,144.96006594,124.43,124.38,310.32]
[1742267016823,144.96006594,124.43,124.42,8.0376]
[1742267017022,2.0901,124.47,124.38,310.32]
[1742267017323,24.15,124.43,124.38,310.32]
[1742267017523,24.15,124.43,124.42,8.0379]
[1742267017722,0.05317447,124.44,124.41,0.06189595]
[1742267017922,24.15,124.43,124.41,0.06189595]
[1742267018122,144.96006594,124.42,124.41,0.06189595]
[1742267018323,247.29297224,124.42,124.41,0.06189595]
[1742267018721,24.15,124.42,124.41,0.06189595]
[1742267018917,0.05317447,124.44,124.41,0.06189595]
[1742267019123,144.96006594,124.43,124.42,8.0375]
[1742267019525,0.05317447,124.44,124.41,0.06189595]
[1742267019821,24.20317447,124.44,124.41,0.06189595]
[1742267020221,0.05317447,124.44,124.41,0.06189595]
[1742267021724,10.84751037,124.43,124.4,5.98794214]
[1742267021925,1.037e-05,124.43,124.4,5.98794214]
[1742267022125,2.074e-05,124.43,124.4,5.98794214]
[1742267022427,2.074e-05,124.43,124.41,32.8]
[1742267022820,2.074e-05,124.43,124.42,8.0379]
[1742267023917,5.97575747,124.44,124.41,32.85221257]
[1742267024131,93.39818106,124.46,124.41,32.85221257]
[1742267024323,34.27729053,124.46,124.45,8.0359]
[1742267024629,34.27729053,124.46,124.45,318.0959]
[1742267024829,117.56681507,124.47,124.46,8.0353]
[1742267025030,117.62072805,124.47,124.46,8.0353]
[1742267025522,141.77072805,124.47,124.46,8.0353]
[1742267026430,117.62072805,124.47,124.46,234.00823368]
[1742267026732,141.77072805,124.47,124.46,234.00823368]
[1742267026925,356.91970029,124.47,124.46,225.97293368]
[1742267027419,356.91970029,124.47,124.46,234.00823368]
[1742267027621,139.18775671,124.47,124.46,234.00823368]
[1742267027825,362.33072895,124.47,124.46,225.97293368]
[1742267028529,362.33072895,124.47,124.46,234.00823368]
[1742267028726,115.03775671,124.47,124.46,234.00823368]
[1742267029333,102.50505671,124.47,124.46,266.68823368]